bitfinex/quotes_ETHUSD_20250115
["timestamp","ask_amount","ask_price","bid_price","bid_amount"]
[1736931521310,1.10180068,3237.7,3237.1,0.39171466]
[1736931524409,1.10180068,3237.7,3236.9,3.88667]
[1736931524574,1.10180068,3237.5,3236.9,3.88667]
[1736931525914,3.79570851,3237.8,3236.9,3.88667]
[1736931526089,1.10180068,3237.6,3236.9,3.88667]
[1736931529416,1.10180068,3237.6,3237.0,0.23176913]
[1736931529715,1.10180068,3237.6,3237.0,0.73548167]
[1736931530718,1.10180068,3237.6,3237.0,0.50371254]
[1736931531413,1.10180068,3237.6,3237.0,3.59298254]
[1736931531583,4.10180068,3238.0,3237.2,0.7556]
[1736931531783,4.10180068,3238.0,3237.3,0.03046973]
[1736931532603,4.10180068,3238.0,3237.2,0.7556]
[1736931532811,1.10180068,3238.0,3237.3,0.03046888]
[1736931532997,1.10180068,3238.0,3237.4,0.7556]
[1736931533193,1.10180068,3238.0,3237.5,0.03046517]
[1736931533517,1.10180068,3238.0,3237.4,0.7556]
[1736931533717,1.10180068,3237.8,3237.4,0.7556]
[1736931533915,1.10180068,3237.8,3237.4,1.1835467]
[1736931534117,1.10180068,3237.8,3237.2,1.19044701]
[1736931536387,1.10180068,3237.8,3237.2,4.27950701]
[1736931537819,1.10180068,3237.8,3237.3,0.23171532]
[1736931539642,0.7579,3237.7,3237.2,0.7556]
[1736931540887,0.7579,3237.7,3237.0,5.6138929]
[1736931541328,0.7579,3237.7,3237.1,0.56138929]
[1736931541843,1.10180068,3237.6,3237.0,1.22884142]
[1736931542405,1.10180068,3237.6,3237.2,0.23175642]
[1736931542686,1.10180068,3237.4,3237.2,0.23175642]
[1736931543118,0.8102,3237.3,3237.2,0.23175642]
[1736931544303,0.8102,3237.3,3236.8,0.7556]
[1736931544631,0.8102,3237.3,3236.8,1.33146838]
[1736931545130,0.8102,3237.3,3236.9,0.23180948]
[1736931545608,0.8102,3237.5,3236.9,0.23180948]
[1736931545924,0.8102,3237.8,3237.1,0.8021]
[1736931546124,0.8102,3237.8,3237.2,0.03047018]
[1736931546328,0.8102,3237.8,3237.2,0.4226452]
[1736931546891,1.91200068,3237.8,3237.2,0.4226452]
[1736931549446,0.8102,3238.0,3237.4,0.8021]
[1736931549645,1.91200068,3238.2,3237.5,0.0304632]
[1736931549814,4.9506054,3238.2,3237.5,0.39214232]
[1736931551141,1.9506054,3238.2,3237.5,0.39214232]
[1736931554016,1.10180068,3238.0,3237.5,0.39214232]
[1736931555666,0.84880472,3238.2,3237.5,0.39214232]
[1736931555829,1.10180068,3238.1,3237.5,0.39214232]
[1736931556013,1.10180068,3238.1,3237.6,0.42831023]
[1736931557707,1.10180068,3237.9,3237.5,0.39214232]
[1736931557909,3.84880472,3238.2,3237.3,1.29582148]
[1736931557910,1.10180068,3237.7,3237.3,1.29582148]
[1736931559055,1.10180068,3237.7,3237.2,0.39217502]
[1736931563311,1.10180068,3237.5,3237.1,1.29582148]
[1736931563512,3.39499626,3238.2,3237.2,0.7926]
[1736931563717,2.58569626,3238.2,3237.5,0.7926]
[1736931564148,2.58569626,3238.2,3237.5,0.82306279]
[1736931564531,2.62430078,3238.2,3237.5,0.7926]
[1736931564733,3.03860452,3238.2,3237.5,2.08842148]
[1736931564932,3.03860452,3238.2,3237.5,2.82674142]
[1736931565821,3.0,3238.3,3237.5,2.82674142]
[1736931566022,3.0,3238.3,3237.6,0.26216575]
[1736931567356,3.0,3238.3,3237.6,0.03046282]
[1736931567655,3.0,3238.3,3237.6,0.82306284]
[1736931567954,3.0,3238.3,3237.7,0.59459743]
[1736931568857,3.03860299,3238.3,3237.6,0.7926]
[1736931579437,3.12672299,3238.3,3237.6,0.7926]
[1736931579639,0.7597,3238.2,3237.6,0.7926]
[1736931579834,0.0386063,3238.1,3237.6,0.7926]
[1736931580337,3.1268463,3238.1,3237.6,0.7926]
[1736931580556,3.0884,3238.0,3237.4,1.29582148]
[1736931580749,0.03860842,3237.9,3237.3,0.8163]
[1736931584772,3.08853,3237.8,3237.3,0.8163]
[1736931585075,0.03860927,3237.7,3237.3,0.8163]
[1736931585370,6.08836,3238.0,3237.3,0.8163]
[1736931585966,0.03860927,3237.9,3237.3,0.8163]
[1736931586271,6.08836,3238.0,3237.3,0.8163]
[1736931587367,7.18956958,3238.0,3237.3,0.8163]
[1736931588642,7.18956958,3238.0,3237.3,1.03055938]
[1736931591352,7.1858511,3238.0,3237.3,1.03055938]
[1736931593177,0.03860925,3237.9,3237.3,1.03055938]
[1736931595385,7.1858511,3238.0,3237.3,1.03055938]
[1736931599179,0.03860927,3237.9,3237.3,1.03055938]
[1736931599750,0.03860927,3237.9,3237.3,0.8163]
[1736931600384,0.03860927,3237.9,3237.1,1.29582148]
[1736931600385,2.58569626,3238.2,3237.5,0.7703]
[1736931601290,3.0,3238.4,3237.7,3.08861]
[1736931601587,4.10120958,3238.4,3237.8,0.7703]
[1736931602084,4.13981054,3238.4,3237.8,0.7703]
[1736931602275,1.13981054,3238.4,3237.8,0.7703]
[1736931602475,1.13981054,3238.4,3237.8,1.48014637]
[1736931604597,1.10120958,3238.0,3237.8,0.7703]
[1736931604956,1.1398145,3238.2,3237.8,0.7703]
[1736931605156,1.10120958,3238.2,3237.8,0.7703]
[1736931605474,6.08786,3238.5,3237.8,0.7703]
[1736931605657,1.10120958,3238.3,3237.8,0.7703]
[1736931605858,4.10120958,3238.5,3237.9,0.8102]
[1736931606060,1.10120958,3238.5,3237.9,0.8102]
[1736931606459,1.10120958,3238.3,3237.9,0.8102]
[1736931608687,0.7795,3238.8,3237.9,0.8102]
[1736931608891,1.10120958,3238.5,3237.9,0.8102]
[1736931609070,1.13980968,3238.5,3237.9,0.8102]
[1736931610192,1.13980968,3238.5,3237.9,1.06090068]
[1736931611778,1.10120958,3238.3,3237.9,1.06090068]
[1736931612084,1.10120958,3238.3,3237.9,0.8102]
[1736931612973,0.0386019,3238.2,3237.9,0.8102]
[1736931613278,1.13981272,3238.3,3237.9,0.8102]
[1736931613499,4.13981272,3238.3,3237.9,0.8102]
[1736931614010,1.10120958,3238.1,3237.6,0.8102]
[1736931614313,1.10120958,3238.1,3237.7,0.21060215]
[1736931616094,1.10120958,3238.1,3237.6,0.8102]
[1736931617215,0.03860394,3238.2,3237.6,0.8102]
[1736931620482,3.0,3238.4,3237.6,0.84066176]
[1736931620680,3.0,3238.4,3237.8,0.8295]
[1736931622189,3.0,3238.4,3237.9,0.8295]
[1736931622405,3.0,3238.4,3237.8,3.08849]
[1736931622406,0.03860122,3238.6,3238.0,0.391799]
[1736931622606,1.10120958,3239.0,3238.1,0.85995207]
[1736931622835,1.10120958,3239.0,3238.2,0.8295]
[1736931623198,1.10120958,3239.0,3238.3,0.03044153]
[1736931623405,0.03859226,3239.2,3238.4,3.08786]
[1736931623703,1.13980184,3239.2,3238.6,0.8295]
[1736931623907,1.10120958,3238.8,3238.6,0.8295]
[1736931625183,3.08721,3239.2,3238.6,0.8295]
[1736931625383,0.03859254,3239.1,3238.6,0.8295]
[1736931630621,0.03859417,3239.2,3238.6,0.8295]
[1736931632130,3.08682,3239.6,3238.8,0.8295]
[1736931632337,6.1056,3239.9,3239.0,0.8295]
[1736931632498,3.08669,3239.8,3239.0,0.8295]
[1736931632705,6.1056,3239.9,3239.0,0.8295]
[1736931632904,3.0,3239.8,3239.0,0.8295]
[1736931633137,3.0,3239.8,3239.1,0.03043009]
[1736931633446,3.08613,3240.3,3239.1,0.03043009]
[1736931633447,3.08635,3240.1,3239.2,0.8102]
[1736931633622,0.7705,3240.2,3239.4,0.8102]
[1736931634160,3.08664,3239.8,3239.4,0.8102]
[1736931634300,5.36340402,3239.7,3238.8,0.8102]
[1736931634497,3.08684,3239.6,3238.8,0.8102]
[1736931634701,0.03858911,3239.5,3238.8,0.8102]
[1736931634906,3.12551911,3239.5,3238.8,0.8102]
[1736931635340,3.12551911,3239.5,3238.8,1.08273014]
[1736931636218,3.12551911,3239.5,3238.8,0.8102]
[1736931637142,3.02551911,3239.5,3238.8,0.8102]
[1736931637534,8.41152752,3239.7,3238.8,0.8102]
[1736931641818,3.08654,3239.9,3238.6,0.64644012]
[1736931642025,3.0,3239.8,3238.9,0.8102]
[1736931642347,3.0,3239.8,3239.0,0.8102]
[1736931642725,3.62977052,3239.8,3239.0,0.8102]
[1736931643906,3.62977052,3239.8,3239.0,0.84107054]
[1736931644141,5.32,3240.0,3239.1,0.8102]
[1736931644306,3.08635,3240.1,3239.3,0.8102]
[1736931644946,3.0,3240.0,3239.3,0.8102]
[1736931645534,5.32481752,3240.2,3239.3,0.8102]
[1736931645727,5.32,3240.5,3239.3,0.8102]
[1736931645728,3.0,3239.7,3239.3,0.8102]
[1736931646221,3.0,3239.7,3238.7,3.08765]
[1736931646422,3.08672,3239.7,3238.8,0.8102]
[1736931646814,3.0,3239.8,3238.8,0.8102]
[1736931647017,3.0,3239.8,3238.9,0.8102]
[1736931647647,2.99814772,3239.8,3238.9,0.8102]
[1736931648463,2.99814772,3239.8,3239.1,0.793]
[1736931648861,6.08475772,3239.8,3239.1,0.793]
[1736931649631,5.32481752,3239.9,3239.1,0.793]
[1736931649962,3.0,3240.1,3239.2,0.793]
[1736931650461,3.08625,3240.2,3239.2,0.793]
[1736931650659,3.08625,3240.2,3239.3,0.793]
[1736931650823,3.08625,3240.2,3239.3,0.82386763]
[1736931651135,3.55,3240.1,3239.5,0.793]
[1736931651863,0.55,3240.3,3239.5,0.793]
[1736931652162,0.55,3240.1,3239.5,0.793]
[1736931653260,3.0,3240.4,3239.5,0.793]
[1736931653445,3.0,3240.4,3239.7,0.793]
[1736931653650,3.0,3240.4,3239.9,0.793]
[1736931655645,3.0,3240.4,3239.9,0.82386224]
[1736931655836,3.0,3240.4,3239.9,0.793]
[1736931657372,0.55,3240.7,3239.9,0.793]
[1736931657951,3.55,3240.7,3240.0,0.03086101]
[1736931658151,3.55,3240.7,3240.1,0.7562]
[1736931659267,3.08584,3240.7,3240.1,0.7562]
[1736931659457,0.55,3240.6,3240.1,0.7562]
[1736931659655,0.55,3240.7,3239.3,3.08708]
[1736931659868,0.55,3240.7,3239.0,4.94373223]
[1736931659869,4.3243,3240.5,3239.4,0.7562]
[1736931660074,0.55,3240.1,3239.4,0.7562]
[1736931660578,0.55,3240.2,3239.4,0.7562]
[1736931661549,3.55,3239.9,3239.4,0.7562]
[1736931662771,3.55,3240.1,3239.4,0.7562]
[1736931663077,3.55,3239.9,3239.4,0.7562]
[1736931664762,6.63653,3239.9,3239.4,0.7562]
[1736931667782,3.55,3239.9,3239.4,0.7562]
[1736931671881,0.793,3240.2,3239.4,0.7562]
[1736931671882,3.87925,3240.2,3239.4,0.7562]
[1736931672088,3.0,3240.1,3239.4,0.7562]
[1736931672778,0.55,3240.0,3239.4,0.7562]
[1736931674770,0.55,3240.2,3239.4,0.7562]
[1736931675115,4.134165,3240.2,3239.4,0.7562]
[1736931675278,0.55,3240.0,3239.4,0.7562]
[1736931677825,3.584165,3240.2,3239.4,0.7562]
[1736931677826,0.793,3240.4,3239.4,0.7562]
[1736931677987,3.08605,3240.4,3239.4,3.08697]
[1736931678168,3.08605,3240.4,3239.5,0.7957]
[1736931678367,0.55,3240.3,3239.5,0.7957]
[1736931678716,3.63614,3240.3,3239.5,0.7957]
[1736931681502,0.55,3240.4,3239.5,0.7957]
[1736931681703,0.55,3240.4,3239.5,0.82656564]
[1736931682024,3.63606,3240.4,3239.5,0.82656564]
[1736931682223,3.63606,3240.4,3239.6,0.7957]
[1736931682729,3.0,3240.5,3239.7,0.03086554]
[1736931682889,8.40588,3240.6,3239.7,0.7957]
[1736931683073,3.0,3240.7,3239.8,0.7957]
[1736931683600,3.0,3240.7,3239.9,0.7957]
[1736931683803,3.0,3240.9,3240.0,0.388228]
[1736931684007,3.0,3240.9,3240.0,0.7957]
[1736931684210,0.55,3240.8,3240.0,0.7957]
[1736931684531,3.55,3240.5,3240.0,0.7957]
[1736931685837,3.55,3240.5,3239.7,0.7957]
[1736931686139,3.55,3240.0,3239.7,0.7957]
[1736931686906,6.63644,3240.0,3239.3,0.7957]
[1736931687108,0.55,3239.8,3239.3,0.7957]
[1736931688103,0.55,3239.8,3239.0,0.7957]
[1736931688104,3.08699,3239.4,3239.0,0.7957]
[1736931688308,3.0868,3239.6,3239.0,0.7957]
[1736931688577,0.55,3239.5,3239.0,0.7957]
[1736931690129,3.08659,3239.9,3239.0,0.7957]
[1736931690303,6.08659,3239.9,3239.0,0.7957]
[1736931690503,0.55,3239.7,3239.0,0.7957]
[1736931691803,0.55,3239.7,3239.2,0.7957]
[1736931692639,3.55,3239.8,3239.2,0.7957]
[1736931697830,6.63662,3239.8,3239.2,0.7957]
[1736931704868,0.55,3239.6,3239.2,0.7957]
[1736931707265,0.55,3239.5,3239.2,0.7957]
[1736931708057,0.55,3239.5,3238.9,0.7938]
[1736931708272,0.55,3239.5,3238.9,1.19713537]
[1736931709067,0.55,3239.1,3238.9,0.7938]
[1736931709242,0.55,3239.5,3238.9,0.7938]
[1736931709431,0.55,3239.3,3238.9,0.7938]
[1736931709662,0.55,3239.5,3238.9,0.7938]
[1736931709858,0.55,3239.2,3238.9,0.7938]
[1736931710683,0.55,3239.1,3238.9,0.7938]
[1736931711037,3.55,3239.1,3238.7,0.7938]
[1736931711378,0.55,3239.0,3238.7,0.7938]
[1736931716283,0.7683,3238.9,3238.2,2.08962148]
[1736931716446,0.55,3239.0,3238.3,0.57844294]
[1736931716846,0.55,3238.8,3238.3,0.57844294]
[1736931717144,0.55,3238.8,3238.2,2.08962148]
[1736931717339,3.08747,3238.9,3238.2,2.08962148]
[1736931717545,3.08747,3238.9,3238.2,0.7938]
[1736931717970,0.55,3239.1,3238.2,0.7938]
[1736931718165,3.08755,3238.9,3238.2,0.7938]
[1736931718482,3.08764,3238.8,3238.2,0.7938]
[1736931720948,0.55,3238.9,3238.2,0.7938]
[1736931725082,0.55,3239.1,3238.2,0.7938]
[1736931725286,0.740543,3239.1,3238.2,0.7938]
[1736931725486,0.55,3238.8,3238.2,0.7938]
[1736931726794,0.55,3239.1,3238.2,0.7938]
[1736931726965,3.08763,3238.8,3238.2,0.7938]
[1736931727165,0.55,3238.9,3238.2,0.7938]
[1736931727397,3.08767,3238.7,3238.2,0.7938]
[1736931727862,3.63778,3238.6,3238.2,0.7938]
[1736931729572,0.7596,3238.8,3238.2,0.7938]
[1736931729573,0.55,3238.7,3238.2,0.7938]
[1736931729902,0.55,3238.7,3237.6,0.7829]
[1736931729903,3.08798,3238.4,3237.6,0.7829]
[1736931730207,3.08798,3238.4,3237.6,0.99077215]
[1736931731107,3.08798,3238.4,3237.7,0.7829]
[1736931731481,0.55,3238.5,3237.7,0.7829]
[1736931733407,0.55,3238.3,3237.7,0.7829]
[1736931734007,3.08805,3238.3,3237.7,0.7829]
[1736931736475,3.08433496,3238.3,3237.7,0.7829]
[1736931738333,0.55,3238.3,3237.7,0.7829]
[1736931738537,3.08823,3238.1,3237.7,0.7829]
[1736931739404,0.55,3238.1,3237.7,0.7829]
[1736931740117,3.0885,3237.9,3237.4,0.7829]
[1736931740615,3.0888,3237.5,3237.4,0.7829]
[1736931740784,3.0888,3237.5,3236.9,1.29386518]
[1736931740785,3.0,3237.5,3237.1,0.7829]
[1736931740987,3.08891,3237.4,3237.1,0.7829]
[1736931741384,3.08908,3237.2,3236.7,0.7829]
[1736931742320,3.08964,3236.7,3236.3,1.29386518]
[1736931742614,3.0,3236.6,3236.3,1.29386518]
[1736931742919,0.55,3236.5,3236.0,7.1164252]
[1736931743087,0.55,3236.5,3236.1,0.89742702]
[1736931745436,3.08977,3236.5,3236.1,0.89742702]
[1736931748341,3.08958,3236.7,3236.1,0.89742702]
[1736931748498,3.55,3236.6,3236.1,0.89742702]
[1736931749049,0.7596,3237.1,3236.2,0.7829]
[1736931749264,3.08899,3237.4,3236.4,0.7829]
[1736931750644,0.55,3237.2,3236.4,0.7829]
[1736931753403,3.63911,3237.2,3236.4,1.40966474]
[1736931754123,3.63911,3237.2,3236.4,0.7829]
[1736931774074,2.32481752,3237.1,3236.4,0.7829]
[1736931774381,3.08947,3236.8,3236.4,0.7829]
[1736931774894,0.55,3236.9,3236.4,0.7829]
[1736931775594,3.55,3236.7,3236.4,0.7829]
[1736931783309,4.65213904,3236.7,3236.4,0.7829]
[1736931783999,1.65213904,3236.7,3236.1,0.996295]
[1736931784339,4.10213904,3236.5,3236.1,0.996295]
[1736931785029,4.65213904,3236.7,3236.1,0.996295]
[1736931785535,0.55,3236.6,3236.1,0.996295]
[1736931787022,3.0,3236.5,3236.1,0.996295]
[1736931789014,3.08943,3236.9,3236.1,0.996295]
[1736931789421,0.55,3236.8,3236.1,0.996295]
[1736931789629,3.0,3236.7,3236.1,0.996295]
[1736931789829,3.0,3236.7,3236.1,1.22840101]
[1736931792807,3.0,3236.7,3236.1,2.52226619]
[1736931793794,3.0,3236.7,3236.1,1.22840101]
[1736931793909,3.08927,3237.1,3236.2,0.85829846]
[1736931794112,5.32,3237.3,3236.2,3.12092846]
[1736931794365,5.32,3237.3,3236.4,0.8274]
[1736931794517,0.55,3237.2,3236.4,0.85829502]
[1736931794911,3.08919,3237.1,3236.4,0.85829502]
[1736931795141,3.08933,3237.0,3236.5,1.29386518]
[1736931795342,1.421433,3237.0,3236.5,1.29386518]
[1736931795525,3.55,3237.0,3236.5,1.29386518]
[1736931795725,3.55,3237.0,3236.4,0.8274]
[1736931797144,3.55,3237.2,3236.4,0.8274]
[1736931797363,3.08959,3236.7,3236.4,0.8274]
[1736931797583,3.08959,3236.7,3236.2,0.8274]
[1736931798959,3.55,3236.8,3236.2,0.8274]
[1736931799730,3.08941,3236.9,3236.2,0.8274]
[1736931799932,3.0,3237.0,3236.3,0.03089845]
[1736931800163,3.0,3237.0,3236.4,0.8274]
[1736931801057,3.08928,3237.0,3236.4,0.8274]
[1736931802157,3.55,3237.2,3236.4,0.8274]
[1736931802363,3.08947,3236.8,3236.4,0.8274]
[1736931802664,0.55,3236.7,3236.1,2.29016018]
[1736931802834,3.08966,3236.6,3236.1,2.29016018]
[1736931803039,3.84716,3236.6,3236.1,2.29016018]
[1736931803235,3.63984,3236.5,3236.1,2.29016018]
[1736931803464,3.63984,3236.5,3236.1,0.996295]
[1736931805636,3.55,3236.6,3236.1,0.996295]
[1736931805840,3.55,3236.6,3236.1,1.22531102]
[1736931806193,3.0,3236.7,3236.1,1.22531102]
[1736931808275,3.0,3236.7,3236.1,1.2562093]
[1736931809065,1.3075,3236.6,3236.1,0.168895]
[1736931809437,4.39719,3236.6,3236.1,0.168895]
[1736931809949,3.08976,3236.5,3236.1,0.168895]
[1736931812481,3.08941,3236.9,3236.2,0.8274]
[1736931813054,0.55,3236.8,3236.2,0.8274]
[1736931813290,0.55,3236.8,3236.3,0.22901602]
[1736931813717,3.84667,3237.2,3236.4,0.7668]
[1736931814151,3.23620528,3237.4,3236.5,0.03089571]
[1736931814355,3.23620528,3237.4,3236.6,3.85642]
[1736931814594,3.88344634,3237.7,3236.3,0.22901602]
[1736931814595,3.23620528,3237.7,3236.8,3.85618]
[1736931814791,3.23620528,3237.7,3237.0,0.7668]
[1736931815097,3.23620528,3237.7,3237.3,3.08899]
[1736931815293,3.88344634,3238.0,3237.4,3.8865764]
[1736931815499,5.32,3238.3,3237.6,0.7668]
[1736931815659,3.88344634,3238.5,3237.7,0.0308825]
[1736931815988,3.88344634,3238.5,3237.6,0.7668]
[1736931816167,3.08778,3238.6,3237.7,1.68251243]
[1736931816168,0.55,3238.4,3237.7,1.68251243]
[1736931816366,3.08778,3238.6,3237.7,1.68251243]
[1736931816961,3.08786,3238.5,3237.7,0.38864725]
[1736931817294,3.0,3238.4,3237.7,0.38864725]
[1736931818598,0.55,3238.6,3237.7,0.38864725]
[1736931818894,3.55,3238.6,3237.7,0.38864725]
[1736931819558,3.55,3238.6,3237.8,0.42441473]
[1736931820466,3.55,3238.6,3237.7,0.03088263]
[1736931820467,3.55,3238.6,3237.7,3.0886]
[1736931820768,3.55,3238.6,3237.6,0.7668]
[1736931821519,0.55,3238.3,3237.6,0.7668]
[1736931822005,1.3393,3238.3,3237.6,0.7668]
[1736931822161,4.3393,3238.3,3237.6,0.7668]
[1736931822366,0.55,3237.8,3237.2,0.7668]
[1736931823129,0.55,3237.5,3237.2,0.7668]
[1736931823281,2.87810636,3237.5,3236.9,2.06066518]
[1736931823867,2.87810636,3237.5,3236.9,0.7668]
[1736931832273,0.7642,3238.0,3237.0,0.03089238]
[1736931832496,5.32,3238.2,3237.1,0.8087]
[1736931832697,3.08804,3238.3,3237.3,3.08898]
[1736931832909,5.32810636,3238.4,3237.4,0.8087]
[1736931833210,3.55,3238.3,3237.4,0.8087]
[1736931833506,1.51423064,3238.3,3237.4,0.8087]
[1736931833711,5.87810636,3238.1,3237.4,0.8087]
[1736931833870,3.55,3237.9,3237.4,0.8087]
[1736931834286,0.55,3237.8,3237.4,0.8087]
[1736931834510,0.55,3237.8,3236.9,0.8087]
[1736931835085,0.55,3237.8,3236.9,0.83959019]
[1736931835412,0.55,3237.9,3237.1,0.8087]
[1736931835578,0.55,3237.9,3237.1,1.20158502]
[1736931835781,0.55,3237.9,3237.2,0.83959018]
[1736931836075,3.55,3238.2,3237.3,0.8087]
[1736931836280,0.7642,3238.6,3237.6,3.08866]
[1736931836480,3.55,3238.4,3237.6,0.8087]
[1736931836681,3.55,3238.4,3237.6,1.198458]
[1736931836876,0.55,3238.1,3237.6,0.8087]
[1736931837092,0.55,3237.9,3237.6,0.8087]
[1736931838479,3.0,3238.6,3237.6,0.8087]
[1736931838681,8.41230636,3238.7,3237.6,3.08861]
[1736931838890,11.49996636,3238.7,3237.7,0.8087]
[1736931839089,3.0,3238.6,3237.8,0.389731]
[1736931839295,0.55,3238.5,3237.8,0.389731]
[1736931842397,0.55,3238.5,3237.9,0.8087]
[1736931849149,0.55,3238.0,3237.9,0.8087]
[1736931849351,0.55,3238.0,3237.6,0.9394]
[1736931849540,3.55,3238.0,3237.6,0.9394]
[1736931849740,5.41612636,3238.4,3237.6,0.9394]
[1736931849920,0.55,3238.2,3237.6,0.9394]
[1736931850254,3.55,3238.2,3237.6,0.9394]
[1736931850863,4.3418,3238.2,3237.6,0.9394]
[1736931851057,3.55,3238.0,3237.6,0.7674]
[1736931851354,3.08824,3238.1,3237.1,3.08915]
[1736931851355,0.55,3237.6,3237.1,0.7674]
[1736931851556,0.55,3237.6,3237.1,0.99072652]
[1736931852129,6.63871,3237.6,3237.1,0.7674]
[1736931853751,0.55,3237.4,3237.1,0.7674]
[1736931856620,6.1118,3238.9,3237.5,3.08871]
[1736931856841,3.08774,3238.7,3237.7,3.08857]
[1736931857043,3.0,3238.6,3237.7,3.08857]
[1736931857258,3.0,3238.6,3237.8,0.7674]
[1736931857628,0.55,3238.5,3237.8,0.7674]
[1736931865336,0.55,3238.3,3237.8,0.7674]
[1736931865537,0.55,3238.3,3237.8,1.29959452]
[1736931869475,0.55,3238.3,3237.8,0.7674]
[1736931873804,3.08767,3238.7,3237.8,0.79828322]
[1736931874163,3.55,3238.6,3237.8,0.7674]
[1736931874369,6.63794,3238.4,3237.8,0.7674]
[1736931874583,3.08814,3238.2,3237.8,0.7674]
[1736931874790,5.41624636,3238.2,3237.8,0.7674]
[1736931874989,5.41624636,3238.2,3237.6,2.11316518]
[1736931875189,5.41624636,3238.2,3237.6,0.8193]
[1736931876579,5.41624636,3238.2,3237.3,2.11316518]
[1736931876580,0.55,3237.8,3237.3,2.11316518]
[1736931876978,3.63857,3237.8,3237.3,2.11316518]
[1736931877802,0.55,3237.8,3237.3,1.29386518]
[1736931878097,0.55,3237.5,3237.1,2.27256518]
[1736931878263,3.55,3237.6,3237.1,2.27256518]
[1736931878672,3.54628324,3237.6,3237.1,2.69390148]
[1736931878915,3.54628324,3237.6,3237.1,1.4000363]
[1736931879402,0.55,3237.6,3237.1,1.4000363]
[1736931879592,0.55,3237.5,3237.1,1.4000363]
[1736931883199,0.55,3237.5,3237.1,0.9787]
[1736931885417,0.55,3237.5,3237.1,0.8057]
[1736931890425,0.55,3237.4,3236.8,0.9365]
[1736931890722,0.55,3237.5,3236.8,0.9365]
[1736931891923,3.55,3237.8,3236.8,0.9365]
[1736931892127,0.55,3237.5,3236.9,0.22303652]
[1736931893929,3.08874,3237.6,3236.9,0.22303652]
[1736931893930,0.55,3237.4,3236.9,0.22303652]
[1736931894220,0.55,3237.4,3236.8,0.7635]
[1736931894600,0.55,3237.3,3236.8,0.7635]
[1736931895005,0.55,3237.5,3236.8,0.7635]
[1736931897922,0.55,3237.5,3236.8,2.05736518]
[1736931898630,0.55,3237.5,3236.8,0.7635]
[1736931898796,0.55,3237.5,3236.9,0.53199152]
[1736931901994,0.55,3237.5,3236.8,0.7635]
[1736931902694,0.55,3237.4,3236.8,0.7635]
[1736931902898,0.55,3237.4,3236.8,0.9365]
[1736931903431,0.55,3237.3,3236.8,0.9365]
[1736931904511,0.55,3237.5,3236.8,0.9365]
[1736931904735,0.55,3237.2,3236.8,0.9365]
[1736931905217,3.63883,3237.5,3236.8,0.9365]
[1736931907346,0.55,3237.5,3236.8,0.9365]
[1736931907642,0.55,3237.3,3236.8,0.9365]
[1736931908065,3.08899,3237.3,3236.8,0.7635]
[1736931908204,0.55,3237.0,3236.6,1.29386518]
[1736931909263,0.55,3237.0,3236.5,0.9605]
[1736931909464,0.55,3236.9,3236.5,0.9605]
[1736931909606,0.55,3236.7,3236.4,3.9979261]
[1736931909808,3.55,3236.7,3236.3,0.7885]
[1736931910553,3.63958,3236.7,3236.3,0.7885]
[1736931910858,0.55,3236.4,3236.1,1.46276018]
[1736931911439,0.55,3236.4,3236.1,0.168895]
[1736931917373,0.55,3236.3,3236.1,0.168895]
[1736931919168,0.55,3236.6,3236.1,0.168895]
[1736931919644,3.55,3236.6,3236.1,0.168895]
[1736931919850,0.55,3236.5,3236.1,0.168895]
[1736931927001,0.55,3236.5,3236.2,0.7712]
[1736931927200,0.55,3236.6,3236.2,0.7712]
[1736931929193,3.63966,3236.6,3236.2,0.7712]
[1736931929595,0.55,3236.4,3236.2,0.7712]
[1736931930233,0.55,3236.4,3236.1,0.168895]
[1736931930234,3.0899,3236.4,3236.1,0.168895]
[1736931930903,0.55,3236.3,3236.1,0.168895]
[1736931931102,3.64,3236.3,3236.1,0.168895]
[1736931931298,0.364,3236.3,3236.1,0.168895]
[1736931931622,0.55,3236.2,3236.1,0.168895]
[1736931932303,3.08985,3236.4,3236.1,0.168895]
[1736931932504,0.55,3236.3,3236.1,0.168895]
[1736931936234,0.55,3236.2,3236.1,0.168895]
[1736931937033,0.55,3236.5,3236.1,0.168895]
[1736931937328,3.64004,3236.2,3236.1,0.168895]
[1736931938512,4.87528059,3236.2,3236.1,0.168895]
[1736931939655,7.87528059,3236.2,3236.1,0.168895]
[1736931941410,10.20459986,3236.2,3236.1,0.168895]
[1736931950567,7.87528059,3236.2,3236.1,0.168895]
[1736931950746,10.20459986,3236.2,3236.1,0.168895]
[1736931963590,8.97793835,3236.2,3236.1,0.168895]
[1736931966586,7.87528059,3236.2,3236.1,0.168895]
[1736931966793,7.40104,3236.2,3236.1,0.168895]
[1736931967094,8.50369776,3236.2,3236.1,0.168895]
[1736931969008,3.55,3236.2,3236.1,0.168895]
[1736931969292,1.10265776,3236.7,3236.1,0.951395]
[1736931970003,6.1477,3237.1,3236.1,0.951395]
[1736931970199,5.32,3237.1,3236.2,4.07334998]
[1736931970363,1.10265776,3237.3,3236.6,0.7825]
[1736931970758,4.10265776,3237.3,3236.6,0.7825]
[1736931970987,3.08843,3237.9,3236.8,0.7825]
[1736931971156,1.10265776,3237.9,3237.0,0.7825]
[1736931971356,3.08825,3238.1,3237.2,0.7825]
[1736931971561,1.10265776,3237.9,3237.2,0.7825]
[1736931971881,1.10265776,3237.9,3237.3,0.7825]
[1736931972080,1.10265776,3238.1,3237.5,0.7825]